bitfinex-derivatives/quotes_SOLF0:USTF0_20250227
["timestamp","ask_amount","ask_price","bid_price","bid_amount"]
[1740683022452,0.05167698,138.52,138.51,7.2289]
[1740683022750,0.05167698,138.52,138.49,0.0525904]
[1740683023541,7.2292,138.51,138.49,0.0525904]
[1740683023746,0.05167698,138.52,138.49,0.0525904]
[1740683024753,0.05167698,138.52,138.5,7.229]
[1740683024953,0.05167698,138.52,138.5,9.094]
[1740683025248,58.22281697,138.6,138.5,1.865]
[1740683025443,11.44,138.59,138.52,7.2282]
[1740683026047,7.2268,138.55,138.52,7.2282]
[1740683026244,11.44,138.59,138.51,1.874]
[1740683026451,0.05171648,138.55,138.52,0.05267824]
[1740683026853,0.05171648,138.55,138.53,7.2274]
[1740683027248,0.05171648,138.55,138.52,0.05267824]
[1740683027448,0.05171648,138.55,138.54,7.2273]
[1740683027652,69.66281697,138.6,138.52,0.05267824]
[1740683027953,69.66281697,138.6,138.55,7.2266]
[1740683028152,7.2255,138.58,138.55,7.2266]
[1740683028553,7.2255,138.58,138.56,7.2263]
[1740683028752,7.26769998,138.58,138.55,0.04932778]
[1740683029256,0.04219998,138.58,138.55,0.04932778]
[1740683029454,7.2249,138.59,138.55,0.04932778]
[1740683029656,11.42,138.62,138.51,1.874]
[1740683029845,0.0999,138.65,138.51,1.874]
[1740683030054,12.74805048,138.64,138.51,1.874]
[1740683030356,7.226,138.57,138.54,7.2271]
[1740683030545,7.226,138.57,138.56,0.05115275]
[1740683031345,11.42,138.64,138.56,0.05115275]
[1740683031855,7.2258,138.57,138.56,0.05115275]
[1740683032656,11.42,138.64,138.56,0.05115275]
[1740683032854,7.2255,138.58,138.56,0.05115275]
[1740683033562,7.2251,138.59,138.56,0.05115275]
[1740683033752,7.2251,138.59,138.56,2.05665275]
[1740683034260,7.2248,138.59,138.56,9.28265275]
[1740683034456,11.42,138.64,138.56,9.28265275]
[1740683034656,11.42,138.64,138.56,2.05665275]
[1740683034856,0.0999,138.65,138.57,7.2257]
[1740683035058,12.72799169,138.64,138.57,7.2257]
[1740683035257,7.224,138.61,138.6,0.05519935]
[1740683037354,7.2234,138.62,138.6,0.05519935]
[1740683037550,1.9723,138.66,138.6,0.05519935]
[1740683037857,12.72807512,138.65,138.6,0.05519935]
[1740683038056,1.32796428,138.64,138.6,0.05519935]
[1740683039258,11.4,138.65,138.6,0.05519935]
[1740683039453,7.2224,138.64,138.6,0.05519935]
[1740683039650,11.4,138.65,138.6,0.05519935]
[1740683040354,7.2225,138.64,138.6,0.05519935]
[1740683040655,2.0288,138.69,138.6,0.05519935]
[1740683040860,7.2222,138.64,138.6,7.224]
[1740683041059,1.8366,138.69,138.63,0.04668393]
[1740683041257,7.2215,138.66,138.61,7.2234]
[1740683041458,7.2215,138.66,138.65,0.05373789]
[1740683041658,1.8366,138.69,138.61,7.2234]
[1740683041962,12.72760699,138.68,138.64,0.05422638]
[1740683042161,7.2217,138.65,138.64,0.05422638]
[1740683046765,7.2217,138.65,138.64,2.638e-05]
[1740683046965,33.06,138.67,138.56,2.0055]
[1740683047166,1.51662003,138.66,138.56,2.0055]
[1740683047364,1.32792003,138.65,138.56,2.0055]
[1740683048165,0.05422638,138.62,138.59,0.0522049]
[1740683048666,7.2242,138.6,138.59,0.0522049]
[1740683048866,0.05422638,138.62,138.59,0.0522049]
[1740683049370,7.2229,138.63,138.59,0.0522049]
[1740683049864,7.2229,138.63,138.59,7.2767049]
[1740683050267,11.38,138.67,138.59,7.2767049]
[1740683050268,11.38,138.67,138.59,0.0522049]
[1740683050863,1.32777123,138.66,138.59,0.0522049]
[1740683051259,11.38,138.67,138.59,0.0522049]
[1740683051767,21.97314203,138.7,138.59,0.0522049]
[1740683051970,12.70774278,138.67,138.56,2.0055]
[1740683052166,25.8217,138.67,138.62,0.04648283]
[1740683052373,1.32776289,138.66,138.62,0.04648283]
[1740683052670,7.2226,138.63,138.62,0.04648283]
[1740683053761,11.6228,138.67,138.56,2.0055]
[1740683053960,14.4444,138.64,138.56,2.0055]
[1740683054669,7.2254,138.58,138.56,2.0055]
[1740683055168,0.04648283,138.58,138.56,2.05349851]
[1740683056469,7.2258,138.57,138.56,0.04799851]
[1740683057467,7.27178283,138.58,138.56,0.04799851]
[1740683057672,0.04648283,138.58,138.56,0.04799851]
[1740683059075,0.04648283,138.58,138.57,7.2258]
[1740683059268,1.8288,138.66,138.56,0.04799851]
[1740683059468,11.38,138.65,138.53,1.8568]
[1740683059667,7.223,138.63,138.59,7.2244]
[1740683059866,11.38,138.65,138.59,7.2244]
[1740683060369,11.38,138.65,138.61,0.05118462]
[1740683060573,11.38,138.67,138.61,0.05118462]
[1740683060772,7.2222,138.64,138.53,1.8568]
[1740683061071,7.2222,138.64,138.63,0.05167173]
[1740683061274,7.2222,138.64,138.53,1.8568]
[1740683061475,7.2226,138.63,138.62,0.04888353]
[1740683061775,7.2226,138.63,138.61,0.05475445]
[1740683062174,7.2226,138.63,138.54,9.98799344]
[1740683062369,7.2226,138.63,138.61,0.04737933]
[1740683062574,7.2226,138.63,138.59,2.0148]
[1740683062775,7.2226,138.63,138.61,0.05451987]
[1740683062972,7.2226,138.63,138.59,2.0148]
[1740683062973,7.2226,138.63,138.59,9.2395]
[1740683063275,7.2226,138.63,138.6,0.0542551]
[1740683063473,7.2232,138.62,138.6,0.0542551]
[1740683064673,7.2232,138.62,138.6,1.9424551]
[1740683065172,11.38,138.67,138.6,1.9424551]
[1740683065380,1.32780332,138.66,138.6,5.51e-05]
[1740683065580,1.32780332,138.66,138.54,9.98799344]
[1740683065773,14.4447,138.64,138.54,78.78750414]
[1740683065974,192.32780332,138.63,138.54,78.78750414]
[1740683066278,1.32780332,138.62,138.54,78.78750414]
[1740683066776,7.2252,138.58,138.57,0.05068219]
[1740683067373,11.47284428,138.59,138.57,0.05068219]
[1740683072369,11.47284428,138.59,138.49,51.26295498]
[1740683072370,11.47284428,138.59,138.49,44.03335498]
[1740683072778,1.32860205,138.58,138.49,44.03335498]
[1740683073284,7.226,138.57,138.49,44.03335498]
[1740683073682,0.05380168,138.54,138.52,0.05173601]
[1740683074883,0.05380168,138.54,138.49,40.15085498]
[1740683075988,0.05380168,138.54,138.5,0.05267621]
[1740683080887,7.28160168,138.54,138.5,0.05267621]
[1740683082184,0.05380168,138.54,138.5,0.05267621]
[1740683082988,7.2284,138.52,138.5,0.05267621]
[1740683083190,18.6484,138.52,138.5,0.05267621]
[1740683084089,11.42,138.52,138.5,0.05267621]
[1740683086490,11.42,138.52,138.5,3.84377621]
[1740683087184,0.05380168,138.54,138.5,11.07317621]
[1740683087489,11.42,138.58,138.5,3.84377621]
[1740683087690,11.42,138.58,138.52,7.2283]
[1740683088287,11.42,138.58,138.51,9.0943]
[1740683088580,11.42,138.58,138.51,1.8657]
[1740683088786,0.05196812,138.56,138.53,0.05295411]
[1740683089485,7.27836812,138.56,138.53,0.05295411]
[1740683089692,0.05196812,138.56,138.53,0.05295411]
[1740683092891,192.44237703,138.66,138.53,0.05295411]
[1740683093091,12.74819074,138.65,138.58,7.2249]
[1740683093287,11.42,138.65,138.58,7.2249]
[1740683093492,7.2229,138.63,138.58,7.2249]
[1740683093890,11.42,138.65,138.51,1.8632]
[1740683094094,0.0509035,138.62,138.59,0.05051247]
[1740683094693,11.42,138.65,138.59,0.05051247]
[1740683095288,11.42,138.65,138.61,7.2232]
[1740683095894,1.8459,138.69,138.6,3.9157]
[1740683096093,13.2459,138.69,138.62,7.2229]
[1740683096289,7.221,138.67,138.63,0.0555165]
[1740683097203,11.4,138.69,138.63,0.0555165]
[1740683097395,1.9336,138.73,138.63,0.0555165]
[1740683097599,11.4,138.69,138.63,0.0555165]
[1740683097999,1.9336,138.73,138.63,0.0555165]
[1740683098191,7.2215,138.66,138.63,0.0555165]
[1740683098395,1.9336,138.73,138.63,0.0555165]
[1740683098591,7.2203,138.68,138.6,3.9157]
[1740683098796,11.4,138.72,138.67,0.05522625]
[1740683099098,1.32765252,138.71,138.68,0.04724893]
[1740683099298,1.32765252,138.71,138.62,7.223]
[1740683099601,1.32765252,138.71,138.68,0.0535856]
[1740683099801,7.2204,138.68,138.62,7.223]
[1740683100002,11.4,138.72,138.64,0.04766495]
[1740683100202,1.32765221,138.71,138.64,0.04766495]
[1740683100895,7.2216,138.65,138.64,0.04766495]
[1740683102003,11.4,138.72,138.64,0.04766495]
[1740683102201,1.3275115,138.71,138.64,0.04766495]
[1740683102402,7.2214,138.66,138.64,0.04766495]
[1740683102994,11.4,138.72,138.64,0.04766495]
[1740683103199,7.2216,138.65,138.64,0.04766495]
[1740683103799,18.6216,138.65,138.64,0.04766495]
[1740683104003,7.2237,138.61,138.6,1.938]
[1740683104202,11.4,138.65,138.53,3.9579]
[1740683104503,7.2239,138.61,138.56,7.226]
[1740683104704,11.4,138.65,138.54,1.8979]
[1740683105202,7.27136495,138.61,138.58,0.04600897]
[1740683106110,7.2246,138.6,138.58,0.04600897]
[1740683106411,0.04766495,138.61,138.58,0.04600897]
[1740683106810,7.2247,138.59,138.58,0.04600897]
[1740683113426,0.04766495,138.61,138.43,318.19495892]
[1740683113613,11.8411,138.6,138.48,3.9246]
[1740683113818,7.2282,138.53,138.49,7.2299]
[1740683114118,26.2896,138.6,138.48,3.9246]
[1740683114424,26.2896,138.6,138.53,0.04785705]
[1740683114425,0.04709449,138.55,138.53,0.04785705]
[1740683114618,1.32867421,138.59,138.53,0.04785705]
[1740683114818,0.05506638,138.55,138.53,7.27545705]
[1740683115019,7.2258,138.57,138.53,0.04785705]
[1740683115219,0.05141905,138.55,138.53,0.04785705]
[1740683115421,1.32849954,138.59,138.53,0.04785705]
[1740683115723,0.04723849,138.55,138.53,0.04785705]
[1740683116317,0.04723849,138.55,138.43,118.71250672]
[1740683116525,1.3285086,138.59,138.43,122.46320672]
[1740683116822,212.68,138.58,138.43,122.46320672]
[1740683117012,1.3285086,138.57,138.43,122.46320672]
[1740683117213,8.86913699,138.57,138.44,10.03771374]
[1740683117412,7.23,138.49,138.44,10.03771374]
[1740683117823,0.04962962,138.48,138.45,0.05370643]
[1740683119017,7.28022962,138.48,138.45,0.05370643]
[1740683119220,0.04962962,138.48,138.45,0.05370643]
[1740683119620,7.2315,138.46,138.45,0.05370643]
[1740683119825,0.04962962,138.48,138.43,108.90064538]
[1740683120027,1.37927548,138.48,138.43,108.90064538]
[1740683120220,7.2325,138.44,138.43,108.90064538]
[1740683120925,7.2325,138.44,138.43,105.95894538]
[1740683121229,7.2331,138.43,138.42,0.05474117]
[1740683121526,18.6531,138.43,138.42,0.05474117]
[1740683122625,19.98309862,138.43,138.42,0.05474117]
[1740683122828,19.98309862,138.43,138.42,4.117e-05]
[1740683124832,41.66309862,138.43,138.42,4.117e-05]
[1740683126031,41.66327298,138.43,138.42,4.117e-05]
[1740683128330,19.98327298,138.43,138.42,4.117e-05]
[1740683130931,19.98311761,138.43,138.42,4.117e-05]
[1740683131532,8.56311761,138.43,138.42,4.117e-05]
[1740683131733,18.6531,138.43,138.42,4.117e-05]
[1740683132029,19.98308803,138.43,138.42,4.117e-05]
[1740683133637,41.66308803,138.43,138.42,4.117e-05]
[1740683135331,49.21121275,138.43,138.42,4.117e-05]
[1740683135527,70.89121275,138.43,138.42,4.117e-05]
[1740683135837,47.88122472,138.43,138.42,4.117e-05]
[1740683136136,49.21146526,138.43,138.42,4.117e-05]
[1740683137735,27.53146526,138.43,138.42,4.117e-05]
[1740683137937,19.98334054,138.43,138.42,4.117e-05]
[1740683139132,18.6531,138.43,138.42,4.117e-05]
[1740683139339,19.9831457,138.43,138.42,4.117e-05]
[1740683139838,63.3431457,138.43,138.42,4.117e-05]
[1740683140838,62.0131,138.43,138.42,4.117e-05]
[1740683141040,63.34338198,138.43,138.42,4.117e-05]
[1740683143241,63.34337706,138.43,138.42,4.117e-05]
[1740683144243,69.56081544,138.43,138.42,4.117e-05]
[1740683144441,49.2111014,138.43,138.42,4.117e-05]
[1740683144839,8.56338596,138.43,138.42,4.117e-05]
[1740683145142,19.98338596,138.43,138.42,4.117e-05]
[1740683147739,19.98308999,138.43,138.42,4.117e-05]
[1740683148738,18.6531,138.43,138.42,4.117e-05]
[1740683148945,7.2331,138.43,138.42,4.117e-05]
[1740683149241,18.6531,138.43,138.42,4.117e-05]
[1740683150245,19.98294861,138.43,138.42,4.117e-05]
[1740683152751,19.98321676,138.43,138.42,4.117e-05]
[1740683153651,41.66321676,138.43,138.42,4.117e-05]
[1740683153854,21.68,138.41,138.29,30.06126566]
[1740683154151,1.33011676,138.4,138.29,33.83096566]
[1740683154350,14.4706,138.39,138.29,33.83096566]
[1740683154552,23.01065325,138.38,138.29,33.83096566]
[1740683154744,1.33065325,138.37,138.29,33.83096566]
[1740683154949,7.2396,138.31,138.29,33.83096566]
[1740683155347,7.2396,138.31,138.29,33.87877004]
[1740683155755,7.239,138.32,138.29,33.87877004]
[1740683156153,0.04854306,138.34,138.29,33.87877004]
[1740683156455,7.2391,138.32,138.29,33.87877004]
[1740683156656,0.04854306,138.34,138.29,33.87877004]
[1740683156857,7.28664306,138.34,138.29,11.05760438]
[1740683157354,0.04854306,138.34,138.29,3.81750438]
[1740683158460,7.2396,138.31,138.29,3.81750438]
[1740683158660,0.04854306,138.34,138.29,3.81750438]
[1740683160059,7.2393,138.32,138.29,3.81750438]
[1740683160251,0.04854306,138.34,138.29,3.81750438]
[1740683161558,1.1438,138.33,138.29,3.81750438]
[1740683161764,11.42,138.36,138.29,3.81750438]
[1740683161959,1.33027866,138.35,138.29,3.81750438]
[1740683162459,0.0503088,138.33,138.29,3.81750438]
[1740683163259,7.2399,138.3,138.29,3.81750438]
[1740683166162,7.2399,138.3,138.29,1.87940438]
[1740683166762,7.2399,138.3,138.29,0.04780438]
[1740683167364,8.56788461,138.3,138.29,4.38e-06]
[1740683168364,30.26788461,138.3,138.29,4.38e-06]
[1740683168566,73.63788461,138.3,138.29,4.38e-06]
[1740683169668,51.94788461,138.3,138.29,4.38e-06]
[1740683169870,53.3940162,138.3,138.29,4.38e-06]
[1740683170366,7.2451,138.2,138.19,2.0195]
[1740683170666,11.48,138.25,138.19,2.0195]
[1740683171067,18.7228,138.25,138.19,2.0195]
[1740683171471,0.04998569,138.23,138.21,0.04880761]
[1740683171671,11.48,138.25,138.21,0.04880761]
[1740683172773,0.05402815,138.24,138.21,0.04880761]
[1740683173378,5.3843,138.25,138.21,0.04880761]
[1740683173584,2.4428,138.25,138.21,0.04880761]
[1740683173778,2.4428,138.25,138.21,7.29330761]
[1740683173985,1.44613159,138.3,138.21,0.04880761]
[1740683174179,1.44613159,138.3,138.24,7.2426]
[1740683174373,1.44613159,138.3,138.19,2.0195]
[1740683174374,18.7396,138.31,138.25,1.9316]
[1740683174572,0.05201143,138.28,138.26,0.04693265]
[1740683174779,11.5,138.31,138.26,0.04693265]
[1740683175679,1.32492602,138.3,138.26,0.04693265]
[1740683175878,7.2414,138.27,138.26,0.04693265]
[1740683176077,0.04731265,138.29,138.26,0.04693265]
[1740683176879,7.2414,138.27,138.26,0.04693265]
[1740683177684,7.2414,138.27,138.26,3.265e-05]
[1740683177882,8.56664721,138.27,138.26,3.265e-05]
[1740683178885,8.56632872,138.27,138.26,3.265e-05]
[1740683180383,16.12333198,138.27,138.26,3.265e-05]
[1740683180682,272.19333198,138.27,138.26,3.265e-05]
[1740683182186,81.19373481,138.27,138.26,3.265e-05]
[1740683183090,73.63673155,138.27,138.26,3.265e-05]
[1740683183391,81.19510259,138.27,138.26,3.265e-05]
[1740683184086,7.2473,138.16,138.14,1.9973]
[1740683184286,11.5,138.16,138.06,1.9847]
[1740683184492,11.5,138.16,138.07,1.8893]
[1740683184691,1.32493565,138.15,138.07,1.8893]
[1740683185085,7.2494,138.12,138.07,1.8893]
[1740683185290,0.05023905,138.12,138.1,0.05472953]
[1740683186094,0.05023905,138.12,138.1,21.77472953]
[1740683186289,11.52,138.19,138.11,1.9486]
[1740683186488,1.3256639,138.18,138.11,1.9486]
[1740683186686,7.2493,138.13,138.11,1.9486]
[1740683186885,11.52,138.19,138.11,1.9486]
[1740683187085,1.32551259,138.18,138.11,1.9486]
[1740683187297,7.2492,138.13,138.11,1.9486]
[1740683187495,0.04659964,138.16,138.11,1.9486]
[1740683187797,0.04659964,138.16,138.11,1.99541171]
[1740683188489,7.2486,138.14,138.11,1.99541171]
[1740683188690,0.04659964,138.16,138.11,1.99541171]
[1740683190187,7.2481,138.15,138.11,1.99541171]
[1740683190395,0.04659964,138.16,138.11,1.99541171]
[1740683190593,11.54,138.18,138.11,9.24491171]
[1740683190794,11.54,138.18,138.11,1.99541171]
[1740683190995,7.2472,138.16,138.11,1.99541171]
[1740683191595,11.54,138.18,138.11,1.99541171]
[1740683191795,0.04330858,138.15,138.11,1.99541171]
[1740683191992,0.04330858,138.15,138.11,9.24521171]
[1740683192193,0.04330858,138.15,138.11,1.99541171]
[1740683193097,7.29130858,138.15,138.11,1.99541171]
[1740683193295,0.04330858,138.15,138.11,1.99541171]
[1740683193596,7.2484,138.14,138.11,1.99541171]
[1740683193789,0.04330858,138.15,138.11,1.99541171]
[1740683194386,11.54,138.22,138.11,23.71541171]
[1740683194591,1.32676538,138.21,138.11,1.9486]
[1740683194791,1.9121,138.26,138.11,1.9486]
[1740683194997,11.56,138.24,138.11,1.9486]
[1740683195293,11.56,138.24,138.19,7.2455]
[1740683195697,11.56,138.24,138.2,1.8498]
[1740683196091,11.56,138.24,138.21,0.05312721]
[1740683196294,7.2435,138.23,138.21,0.05312721]
[1740683196496,11.56,138.24,138.21,0.05312721]
[1740683196792,9.47019744,138.3,138.21,0.05312721]
[1740683196793,1.9121,138.3,138.21,0.05312721]
[1740683196994,12.90787692,138.29,138.21,0.05312721]
[1740683197295,1.327967,138.28,138.24,0.05484029]
[1740683197495,7.2423,138.26,138.24,0.05484029]
[1740683197693,11.58,138.29,138.24,0.05484029]
[1740683197890,1.3280028,138.28,138.24,0.05484029]
[1740683198097,7.2425,138.25,138.24,0.05484029]
[1740683200203,11.58,138.29,138.11,181.9723379]
[1740683200496,11.58,138.29,138.11,189.2219379]
[1740683200695,1.32749738,138.28,138.11,189.2219379]
[1740683200899,7.2467,138.17,138.11,181.9723379]
[1740683201097,11.58,138.2,138.09,40.02947844]
[1740683201302,12.90713366,138.19,138.09,40.02947844]
[1740683201594,0.04998793,138.16,138.13,0.04843475]
[1740683201999,7.2477,138.15,138.13,0.04843475]
[1740683202195,0.04998793,138.16,138.13,0.04843475]
[1740683204600,11.58,138.19,138.13,21.76843475]
[1740683204796,11.6,138.25,138.13,203.74077265]
[1740683205101,7.245,138.21,138.13,181.9723379]
[1740683205303,11.6,138.25,138.13,181.9723379]
[1740683205698,11.6,138.25,138.18,0.05116359]
[1740683206096,7.2455,138.2,138.18,0.05116359]
[1740683206300,11.6,138.25,138.18,0.05116359]
[1740683206805,7.2456,138.19,138.18,0.05116359]
[1740683209805,7.2453,138.2,138.18,0.05116359]
[1740683211905,7.2456,138.19,138.18,0.05116359]
[1740683215105,11.58,138.25,138.18,0.05116359]
[1740683215811,7.245,138.21,138.18,7.29696359]
[1740683216007,11.58,138.25,138.18,7.29696359]
[1740683216506,11.58,138.25,138.18,0.05116359]
[1740683216809,7.2436,138.23,138.18,0.05116359]
[1740683217010,11.58,138.25,138.18,0.05116359]
[1740683217210,11.58,138.25,138.19,7.2453]
[1740683217414,11.58,138.25,138.18,0.05116359]
[1740683218114,7.2447,138.21,138.18,7.29726359]
[1740683218312,11.58,138.25,138.18,7.29726359]
[1740683218613,7.2447,138.21,138.18,7.29726359]
[1740683218814,11.58,138.25,138.18,0.05116359]
[1740683219010,11.58,138.25,138.21,7.2443]
[1740683219211,7.2432,138.24,138.21,7.2443]
[1740683219407,7.2432,138.24,138.22,0.04858338]
[1740683219607,11.58,138.25,138.22,0.04858338]
[1740683220207,7.2433,138.24,138.22,0.04858338]
[1740683220407,14.91543617,138.29,138.22,7.29258338]
[1740683220614,13.4692,138.29,138.22,0.04858338]
[1740683220912,7.2435,138.23,138.22,0.04858338]
[1740683222212,7.2433,138.24,138.22,0.04858338]
[1740683222410,13.4692,138.29,138.22,0.04858338]
[1740683222611,7.2422,138.26,138.22,0.04858338]
[1740683223109,7.2433,138.24,138.22,0.04858338]
[1740683223813,1.9092,138.29,138.22,0.04858338]
[1740683224010,7.2427,138.25,138.22,0.04858338]
[1740683224213,7.2427,138.25,138.23,7.2435]
[1740683224716,1.9092,138.29,138.23,7.2435]
[1740683225015,7.2423,138.26,138.24,7.2429]
[1740683225513,7.2423,138.26,138.24,0.05158155]
[1740683226417,11.56,138.34,138.24,21.75158155]
[1740683226714,7.239,138.32,138.28,7.2405]
[1740683227014,7.239,138.32,138.28,0.05028506]
[1740683227214,11.56,138.34,138.28,0.05028506]
[1740683228116,7.2397,138.31,138.28,0.05028506]
[1740683228711,15.5534,138.35,138.28,0.05028506]
[1740683228911,1.32866742,138.34,138.18,181.9723379]
[1740683229114,21.69,138.31,138.18,181.9723379]
[1740683229311,7.2449,138.21,138.15,12.49879654]
[1740683229617,11.58,138.24,138.2,10.01002217]
[1740683229917,7.2446,138.21,138.2,10.01002217]
[1740683230613,3.81593613,138.23,138.2,10.01002217]
[1740683231617,7.2446,138.21,138.2,10.01002217]
[1740683231809,3.81593613,138.23,138.2,10.01002217]
[1740683232016,3.81593613,138.23,138.19,0.05317487]
[1740683233418,7.2444,138.22,138.19,0.05317487]
[1740683233612,3.81593613,138.23,138.19,0.05317487]
[1740683234011,7.2441,138.22,138.19,0.05317487]
[1740683234407,3.81593613,138.23,138.19,0.05317487]
[1740683236519,0.04833613,138.23,138.19,7.29847487]
[1740683236712,0.04833613,138.23,138.19,0.05317487]
[1740683237015,0.04833613,138.23,138.22,7.2441]
[1740683237414,0.04833613,138.23,138.22,28.9441]
[1740683238114,0.04833613,138.23,138.22,21.7]
[1740683238315,0.04833613,138.23,138.19,0.05317487]
[1740683238913,7.2451,138.2,138.19,0.05317487]
[1740683239713,3.9044,138.22,138.11,40.04008868]
[1740683239919,3.9044,138.22,138.15,10.01002217]
[1740683240118,3.9044,138.22,138.15,0.86572217]
[1740683240319,7.2477,138.15,138.14,30.03006651]
[1740683241023,7.2477,138.15,138.14,26.98066651]
[1740683241218,7.2477,138.15,138.14,20.88186651]
[1740683241821,0.0531365,138.16,138.14,20.88186651]
[1740683243122,0.0531365,138.16,138.13,0.05064302]
[1740683243712,0.0531365,138.16,138.03,80.08017737]
[1740683243915,7.2493,138.12,138.05,9.2542]
[1740683244122,33.36,138.17,138.05,2.0013]
[1740683244518,55.05,138.17,138.03,80.08017737]
[1740683244723,1.32787828,138.16,138.03,80.08017737]
[1740683244923,0.05306303,138.11,138.09,0.05431306]
[1740683245125,1.32787828,138.16,138.09,0.05431306]
[1740683245325,0.04952441,138.11,138.09,0.05431306]
[1740683245717,0.04952441,138.11,138.09,7.30511306]
[1740683245921,0.04952441,138.11,138.09,0.05431306]
[1740683246317,0.04952441,138.11,138.1,7.2503]
[1740683246626,0.04952441,138.11,138.09,0.05431306]
[1740683247323,3.8644,138.19,138.13,7.2484]
[1740683247926,7.56069741,138.25,138.1,3.8646]
[1740683247927,11.62,138.21,138.1,3.8646]
[1740683248437,0.0546065,138.17,138.14,7.29614406]
[1740683248729,0.0546065,138.17,138.14,0.04794406]
[1740683248927,0.0546065,138.17,138.16,7.2472]
[1740683249227,3.8644,138.24,138.14,21.76794406]
[1740683249424,3.8644,138.24,138.18,7.2458]
[1740683250422,0.05286379,138.22,138.2,0.05477613]
[1740683251027,0.05286379,138.22,138.1,3.8646]
[1740683251232,47.3144,138.24,138.04,181.9723379]
[1740683251427,1.32879731,138.23,138.05,3.7127]
[1740683252028,7.246,138.19,138.08,80.08017737]
[1740683252232,0.05061642,138.15,138.13,0.04809204]
[1740683259631,0.05061642,138.15,138.05,3.7127]
[1740683259837,3.7047,138.17,138.05,3.7127]
[1740683260338,3.7047,138.17,138.06,7.2523]
[1740683260743,3.7047,138.17,138.05,3.7127]
[1740683260938,0.05258027,138.13,138.1,0.0469934]
[1740683262442,0.05258027,138.13,138.1,7.2968934]
[1740683262646,0.05258027,138.13,138.1,0.0469934]
[1740683263633,0.05258027,138.13,138.11,7.2496]
[1740683264844,0.05258027,138.13,138.1,0.0469934]
[1740683265036,0.05258027,138.13,138.12,7.2493]
[1740683265944,0.05258027,138.13,138.11,7.2495]
[1740683266147,0.05258027,138.13,138.1,0.0469934]
[1740683266643,0.05258027,138.13,138.1,7.2968934]
[1740683267049,0.05258027,138.13,138.1,0.0469934]
[1740683267252,0.05258027,138.13,138.11,7.2495]
[1740683267645,0.05258027,138.13,138.1,0.0469934]
[1740683267841,0.05258027,138.13,138.12,7.2493]
[1740683268045,0.05258027,138.13,138.1,0.0469934]
[1740683268550,0.05258027,138.13,138.11,7.2495]
[1740683268947,0.05258027,138.13,138.1,0.0469934]
[1740683269149,0.05258027,138.13,138.11,7.2494]
[1740683269549,0.05258027,138.13,138.12,7.2493]
[1740683269950,0.05258027,138.13,138.1,0.0469934]
[1740683270150,7.30138027,138.13,138.11,7.2496]
[1740683270352,0.05258027,138.13,138.1,0.0469934]
[1740683270756,0.05258027,138.13,138.11,7.2498]
[1740683271058,0.05258027,138.13,138.1,0.0469934]
[1740683271354,0.05258027,138.13,138.12,7.2493]
[1740683272954,11.62,138.19,138.11,3.8653]
[1740683273156,7.2455,138.2,138.12,1.854]
[1740683273457,13.02675925,138.24,138.12,1.854]
[1740683273651,7.2452,138.2,138.18,7.2459]
[1740683273858,7.2452,138.2,138.12,1.854]
[1740683274256,0.05421598,138.17,138.16,7.2472]
[1740683274555,1.44675925,138.24,138.16,7.2472]
[1740683274755,0.05014344,138.18,138.16,7.2472]
[1740683274952,1.44675925,138.24,138.18,7.2461]
[1740683275153,0.05243,138.18,138.16,0.04725574]
[1740683275357,7.2449,138.21,138.12,1.854]
[1740683275548,0.04706067,138.18,138.16,0.04591945]
[1740683275752,0.04706067,138.18,138.17,7.2464]
[1740683275947,0.04706067,138.18,138.16,0.04591945]
[1740683276158,0.04706067,138.18,138.16,7.29301945]
[1740683276361,0.04706067,138.18,138.16,0.04591945]
[1740683276858,0.04706067,138.18,138.17,7.2467]
[1740683277359,5.9024,138.26,138.17,21.72]
[1740683277360,11.2044,138.26,138.17,21.72]
[1740683277557,7.2423,138.26,138.17,1.9526]
[1740683277755,17.2934,138.3,138.17,1.9526]
[1740683277957,7.242,138.26,138.17,1.9526]
[1740683278153,7.242,138.26,138.18,1.9789]
[1740683278350,0.05168864,138.23,138.22,7.2438]
[1740683278553,7.242,138.26,138.22,7.2438]
[1740683278752,11.56,138.31,138.2,0.05431018]
[1740683279056,11.56,138.31,138.18,1.9789]
[1740683279256,7.2419,138.27,138.18,1.9789]
[1740683279458,11.56,138.31,138.18,1.9789]
[1740683279759,7.2418,138.27,138.23,0.04674648]